Cogmind - Beta 11 @@@ ROGUE MODE // 2022.03.18 @ 23:36:34 Player: 277 Result: Destroyed by H-88 Terminator with KE Penetrator Performance ------------- Evolutions (9) 4500 Regions Visited (14) 2800 Robots Destroyed (163) 815 Value Destroyed (6081) 6081 Prototype IDs (21) 420 Alien Tech Used (0) 0 Bonus (1618) 1618 TOTAL SCORE: 16234 Bonus ------- High Alert Combat Kills 890 Follower Combat Kills 495 Entered DSFs 500 Friendly Fire -267 Cogmind --------- Core Integrity 0/1600 Matter 300/300 Energy 98/100 System Corruption 15% Temperature Cool (0) Movement Core (50) Location -1/Command Parts ------- > --- POWER (2) -------- (None) > --- PROPULSION (6) --- (None) > --- UTILITY (13) ----- (None) > --- WEAPON (4) ------- (None) > --- INVENTORY (5) ---- Compact Particle Reactor Quantum Reactor Light Quantum Reactor Peak State ------------ > --- POWER ------------ Antimatter Reactor Micro Antimatter Reactor > --- PROPULSION ------- Advanced Heavy Treads Advanced Heavy Treads > --- UTILITY ---------- Advanced Power Amplifier Advanced Heat Sink Advanced Heat Sink Large Storage Unit Improved Energy Well Improved Matter Compressor Enhanced Optical Array Long-range Sensor Array Advanced Target Analyzer Centrium Medium Armor Plating Improved Focal Shield Advanced Force Field > --- WEAPON ----------- Compact HERF Cannon Matter Neutralizer Hardcell Cannon > --- INVENTORY -------- Improved Deuterium Engine Light Antimatter Reactor Improved Medium Treads Improved Medium Treads Advanced Heat Sink Improved Sensor Array Improved Core Shielding Gamma Rifle Advanced Beam Rifle Advanced Beam Rifle Heavy Laser Long-range Proton Cannon Minigun Hypervelocity Coil Gun [Rating: 149] Favorites ----------- Power Ion Engine Engine Ion Engine Power Core Light Nuclear Core Reactor Antimatter Reactor Propulsion Titanium Leg Treads Advanced Heavy Treads Leg Titanium Leg Hover Unit Improved Linear Gravjet Flight Unit Q-thruster Utility Large Storage Unit Device Improved Terrain Scanner Storage Large Storage Unit Processor Targeting Computer Hackware Advanced System Shield Protection Reflective Plating Weapon Advanced Beam Rifle Energy Gun Advanced Beam Rifle Energy Cannon Improved EM Pulse Cannon Ballistic Gun Assault Rifle Ballistic Cannon Hardcell Cannon Launcher Tesla Bomb Launcher Build | -11 -10 -9 -8 -7 -6 -5 -5 -4 -3 -3 -2 -2 -1 -1 ------- Run | Scr Mat Mat Mat Fac Fac Fac Ext Fac Res Arm Res DSF Acc Com Slots Evolved 18 | . . 2 2 2 2 2 . 2 2 . 2 . 2 . Power 1 | . . . . . 1 . . . . . . . . . Propulsion 4 | . . . 2 . . . . . . . 1 . 1 . Utility 11 | . . 2 . 2 1 2 . 1 2 . . . 1 . Weapon 2 | . . . . . . . . 1 . . 1 . . . Parts Attached 207 | 8 17 24 40 11 3 12 15 5 40 24 . 3 3 2 Power 25 | 1 . 1 6 . . 4 2 1 4 5 . . 1 . Engine 9 | 1 . 1 2 . . 3 1 . 1 . . . . . Core 7 | . . . 4 . . 1 1 . . 1 . . . . Reactor 9 | . . . . . . . . 1 3 4 . . 1 . Propulsion 44 | 2 3 8 6 5 . . 4 . 6 4 . 3 1 2 Treads 14 | . . . 1 . . . 4 . 6 1 . 1 1 . Leg 27 | 2 3 8 5 5 . . . . . 3 . . . 1 Wheel . | . . . . . . . . . . . . . . . Hover 1 | . . . . . . . . . . . . . . 1 Flight 2 | . . . . . . . . . . . . 2 . . Utility 60 | 3 2 3 5 6 3 5 4 2 17 9 . . 1 . Device 23 | 2 1 . 1 2 1 1 1 1 10 2 . . 1 . Storage 7 | 1 1 . 1 1 . 1 . 1 1 . . . . . Processor 9 | . . 2 . 2 2 1 . . 2 . . . . . Hackware 9 | . . . 1 . . 1 . . . 7 . . . . Protection 12 | . . 1 2 1 . 1 3 . 4 . . . . . Artifact . | . . . . . . . . . . . . . . . Weapon 78 | 2 12 12 23 . . 3 5 2 13 6 . . . . Energy Gun 22 | . 1 6 9 . . . 1 . 1 4 . . . . Energy Cannon 14 | . 3 2 . . . 1 2 . 4 2 . . . . Ballistic Gun 14 | 2 3 . 3 . . . 1 . 5 . . . . . Ballistic Cannon 5 | . 1 . 1 . . 1 . 1 1 . . . . . Launcher 23 | . 4 4 10 . . 1 1 1 2 . . . . . Special Weapon . | . . . . . . . . . . . . . . . Impact Weapon . | . . . . . . . . . . . . . . . Slashing Weapon . | . . . . . . . . . . . . . . . Piercing Weapon . | . . . . . . . . . . . . . . . Special Melee Weapon . | . . . . . . . . . . . . . . . Unidentified Prototypes 9 | . . . 2 . . 2 . 1 2 2 . . . . Parts Lost 75 | . . 2 6 2 . 1 14 . 21 15 . 4 8 2 Power 9 | . . . 1 . . 1 2 . 3 2 . . . . Propulsion 20 | . . . 2 1 . . 5 . 4 2 . . 4 2 Utility 30 | . . 1 1 1 . . 4 . 10 5 . 4 4 . Weapon 16 | . . 1 2 . . . 3 . 4 6 . . . . Highest Loss Streak 13 | . . 2 6 1 . 1 12 . 13 8 . 4 8 2 To Critical Strikes . | . . . . . . . . . . . . . . . Average Slot Usage (%) 88 | . 99 99 95 95 93 97 96 90 83 71 34 33 26 4 Engine 4 | . 14 11 2 . . 3 1 5 1 . . . . . Core 2 | . . . 6 7 6 5 8 . . . . . . . Reactor 1 | . . . . . . . . 3 7 4 . . . . Treads 2 | . . . . 2 . . 2 15 9 1 . 4 6 . Leg 18 | . 28 21 33 26 26 23 18 . . 8 . . . 2 Device 12 | . 21 11 . 11 13 14 12 17 22 3 . . 2 . Storage 8 | . 6 11 9 9 13 9 11 13 13 . . . . . Processor 11 | . . 15 18 15 20 17 15 10 8 14 13 11 6 . Hackware 3 | . . . . . . 3 3 . . 28 21 15 6 . Protection 3 | . . 6 7 4 . 4 5 8 4 . . . . . Energy Gun 6 | . 3 13 13 15 13 3 1 5 1 5 . . . . Energy Cannon 3 | . 5 7 . . . 3 4 3 4 2 . . . . Ballistic Gun 1 | . 9 . . . . . . . 1 . . . . . Ballistic Cannon 2 | . 4 . . . . 2 3 1 4 . . . . . Launcher 1 | . 3 1 2 . . 1 . 5 . . . . . . Naked Turns 85 | . . . . . . . . . . . . . 46 39 Heaviest Build 120 | 15 32 35 42 35 35 60 73 91 120 68 . . 1 . Greatest Support 140 | 20 20 34 68 77 77 77 80 80 140 85 3 16 3 3 Greatest Overweight (x) 8 | . 1 1 1 1 . . 3 1 2 8 . . . . Average Overweight (x) . | . . . . . . . . . . . . . . . Largest Inventory Capacity 15 | 8 15 15 15 15 15 15 15 15 15 5 5 5 5 5 Average Capacity 12 | 6 9 15 15 15 15 15 15 15 14 5 5 5 5 5 Most Carried 15 | 1 14 15 15 15 14 15 15 11 15 5 3 3 3 4 Average Carried 10 | . 6 13 13 13 13 14 13 8 12 3 2 1 2 3 Final Capacity 15 | 5 15 15 15 15 15 15 15 15 5 5 5 5 5 5 Final Carried 15 | 1 14 15 12 14 13 15 8 10 5 1 3 1 3 3 Class Distribution -------------------- 54% | Mutant 16% | Skirmisher 9% | Scavenger-Mutant 7% | Scavenger-Tank 4% | Tank 4% | Scavenger-Skirmisher Dominant Class ---------------- Mutant | -10/Materials Mutant | -9/Materials Mutant | -8/Materials Scavenger-Mutant | -7/Factory Skirmisher | -6/Factory Skirmisher | -5/Factory Skirmisher | -5/Extension Scavenger-Tank | -4/Factory Scavenger-Tank | -3/Research Mutant | -3/Armory Mutant | -2/Research Mutant | -2/DSF Mutant | -1/Access Mutant | -1/Command Resources | -11 -10 -9 -8 -7 -6 -5 -5 -4 -3 -3 -2 -2 -1 -1 ----------- Run | Scr Mat Mat Mat Fac Fac Fac Ext Fac Res Arm Res DSF Acc Com Matter Collected 4066 | 219 389 390 468 396 62 148 291 . 1501 202 . . . . Remotely . | . . . . . . . . . . . . . . . Salvage Created 6662 | 100 467 780 1011 396 62 459 1197 . 2008 182 . . . . Parts 357 | 6 35 57 78 19 . 24 41 . 93 4 . . . . Haulers Intercepted 7 | . 2 . 1 . . 2 1 . 1 . . . . . Recyclers Shooed 2 | . . . 1 . . . . . 1 . . . . . Parts Field Recycled . | . . . . . . . . . . . . . . . Retrieved Matter . | . . . . . . . . . . . . . . . Parts Self-Destructed . | . . . . . . . . . . . . . . . Prevented . | . . . . . . . . . . . . . . . Kills | -11 -10 -9 -8 -7 -6 -5 -5 -4 -3 -3 -2 -2 -1 -1 ------- Run | Scr Mat Mat Mat Fac Fac Fac Ext Fac Res Arm Res DSF Acc Com Combat Hostiles Destroyed 110 | . 13 20 24 7 1 2 10 . 30 3 . . . . Melee 1 | . . . . . . . . . 1 . . . . . Guns 37 | . 4 11 10 7 1 . . . 4 . . . . . Cannons 43 | . 3 4 1 . . 2 8 . 23 2 . . . . AOE 25 | . 6 5 12 . . . . . 2 . . . . . Classes Destroyed 16 | 2 5 4 3 1 . . 1 . . . . . . . Worker 12 | . 1 2 4 . . 4 1 . . . . . . . Builder 7 | . . 1 3 . . . 2 . 1 . . . . . Tunneler 5 | 2 . . . 1 . 2 . . . . . . . . Hauler 7 | . 2 . 1 . . 2 1 . 1 . . . . . Recycler 8 | 1 1 . 2 1 . . 3 . . . . . . . Operator 5 | . . 1 2 . . 1 1 . . . . . . . Watcher 9 | . 3 1 2 . . . . . 3 . . . . . Swarmer 22 | . 6 7 6 2 . . 1 . . . . . . . Grunt 38 | . 7 7 7 4 . 2 1 . 10 . . . . . Duelist 3 | . . 2 1 . . . . . . . . . . . Sentry 17 | . . 4 5 . 1 . 4 . 3 . . . . . Specialist 4 | . . . 2 . . . . . . 2 . . . . Hunter 12 | . . . 2 . . . 3 . 6 1 . . . . Programmer 11 | . . . . 1 . . . . 10 . . . . . Heavy 2 | . . . 1 . . . . . 1 . . . . . Behemoth 1 | . . . . . . . 1 . . . . . . . Best Kill Streak 10 | 3 6 8 10 4 1 3 9 . 3 2 . . . . Combat Bots Only 7 | . 3 6 7 3 1 2 6 . 3 2 . . . . Max Kills in Single Turn 4 | 1 3 3 4 1 1 2 3 . 2 1 . . . . Gunslinging 1 | . . . 1 . . . . . . . . . . . Exploded 4 | . 3 2 4 . . . . . 1 . . . . . Melee 1 | . . . . . . . . . 1 . . . . . Uniques/NPCs Destroyed . | . . . . . . . . . . . . . . . Combat | -11 -10 -9 -8 -7 -6 -5 -5 -4 -3 -3 -2 -2 -1 -1 -------- Run | Scr Mat Mat Mat Fac Fac Fac Ext Fac Res Arm Res DSF Acc Com Damage Taken 16871 | . 320 704 1389 299 159 77 2514 . 4968 2746 . 346 2041 1308 Core 3849 | . 69 175 388 43 31 . 316 . 482 665 . 69 831 780 Absorbed by Shields 1448 | . . . . 33 73 29 . . 1313 . . . . . Redirected to Shielding 69 | . . . . . . . . . 69 . . . . . Regen/Repaired (Parts) 139 | . 52 6 81 . . . . . . . . . . . Core Remaining (%) 72 | 100 72 56 29 93 96 . 68 100 . 11 . 95 . . Volleys Fired 399 | 8 56 50 51 27 9 24 49 . 97 28 . . . . Largest 3 | 2 2 2 2 2 2 2 2 . 3 3 . . . . Hottest 264 | 40 120 120 122 122 122 122 162 . 264 250 . . . . Shots Fired 743 | 16 86 83 84 54 18 46 83 . 230 43 . . . . Gun 373 | 16 47 48 55 54 18 26 21 . 59 29 . . . . Cannon 320 | . 32 29 1 . . 19 59 . 166 14 . . . . Launcher 50 | . 7 6 28 . . 1 3 . 5 . . . . . Special . | . . . . . . . . . . . . . . . Kinetic 251 | 16 59 . 3 . . 8 28 . 137 . . . . . Thermal 275 | . 14 29 10 54 18 26 17 . 66 41 . . . . Explosive 41 | . 7 6 28 . . . . . . . . . . . Electromagnetic 176 | . 6 48 43 . . 12 38 . 27 2 . . . . Robot Hit Streak 21 | 7 8 19 20 17 6 12 9 . 21 8 . . . . Robot Miss Streak 5 | 1 3 3 3 3 2 4 2 . 5 2 . . . . Penetration Max 2 | . . . . . . 1 2 . 2 . . . . . Secondary Targets 5 | . . 1 3 1 . . . . . . . . . . Max Gunslinging Chain 1 | . . 1 1 1 . . . . . . . . . . Shots Hit Robots 488 | 13 46 57 55 37 12 31 60 . 146 31 . . . . Core Hits 293 | 4 22 34 68 15 3 14 41 . 79 12 . . . 1 Critical Kills 2 | . . . . . . . . . 2 . . . . . Critical Parts Destroyed 7 | . . . . . . . 2 . 5 . . . . . Critical Strikes 37 | . . . 4 5 . 3 7 . 18 . . . . . Burn 10 | . . . 1 5 . 1 1 . 2 . . . . . Destroy 11 | . . . . . . . 3 . 8 . . . . . Blast 11 | . . . . . . 2 2 . 7 . . . . . Corrupt 5 | . . . 3 . . . 1 . 1 . . . . . Melee Attacks . | . . . . . . . . . . . . . . . Impact . | . . . . . . . . . . . . . . . Slashing . | . . . . . . . . . . . . . . . Piercing . | . . . . . . . . . . . . . . . Sneak Attacks . | . . . . . . . . . . . . . . . Combat Hostiles . | . . . . . . . . . . . . . . . Follow-up Attacks . | . . . . . . . . . . . . . . . Damage Inflicted 16776 | 156 1154 1285 2991 827 240 927 2229 . 5957 984 . . 8 18 Guns 4694 | 156 271 463 773 827 240 360 330 . 732 542 . . . . Cannons 7386 | . 421 386 23 . . 423 1433 . 4263 437 . . . . Explosions 4583 | . 462 436 2195 . . 144 466 . 880 . . . . . Melee . | . . . . . . . . . . . . . . . Ramming 113 | . . . . . . . . . 82 5 . . 8 18 Kinetic 4439 | 156 486 . 56 . . 205 553 . 2983 . . . . . Thermal 5341 | . 236 425 426 827 240 399 262 . 1606 920 . . . . Explosive 2912 | . 419 397 1911 . . . . . 185 . . . . . Electromagnetic 3971 | . 13 463 598 . . 323 1414 . 1101 59 . . . . Impact . | . . . . . . . . . . . . . . . Slashing . | . . . . . . . . . . . . . . . Piercing . | . . . . . . . . . . . . . . . Highest Corruption 15 | . . 2 . 1 . . 1 . 13 13 . 9 15 15 Average Corruption 8 | . . 1 . 1 . . 1 . 8 13 . 9 10 15 Corruption Purged . | . . . . . . . . . . . . . . . Corruption Blocked . | . . . . . . . . . . . . . . . Effects 63 | . . 2 . . . . 1 . 29 20 . 1 4 6 Message Errors 16 | . . 1 . . . . . . 7 6 . . 1 1 Matter Fused 8 | . . . . . . . 1 . 3 4 . . . . Heat Flow Errors 3 | . . . . . . . . . 3 . . . . . Energy Discharges 5 | . . . . . . . . . 1 2 . . 1 1 Parts Rejected 4 | . . . . . . . . . 4 . . . . . Data Loss (minor) 9 | . . 1 . . . . . . 2 3 . 1 1 1 Data Loss (major) 3 | . . . . . . . . . 2 1 . . . . Misfires 2 | . . . . . . . . . 2 . . . . . Alerts 3 | . . . . . . . . . 2 1 . . . . Misdirections 6 | . . . . . . . . . . 2 . . 1 3 Weapon Failures 4 | . . . . . . . . . 3 1 . . . . Overload Shots . | . . . . . . . . . . . . . . . Overflow Damage 197 | . 18 1 40 . . . 3 . 135 . . . . . Projectiles 74 | . . . . . . . . . 74 . . . . . Explosions 123 | . 18 1 40 . . . 3 . 61 . . . . . Melee . | . . . . . . . . . . . . . . . Knockbacks 34 | . 2 . . . . 2 3 . 27 . . . . . Impact 1 | . . . . . . . . . 1 . . . . . Kinetic 27 | . 2 . . . . 1 2 . 22 . . . . . Secondary 6 | . . . . . . 1 1 . 4 . . . . . Self-Inflicted Damage 221 | . 8 . 26 . . . 45 . 129 2 . . 4 7 Shots 6 | . 1 . 1 . . . 2 . 2 . . . . . Rammed 17 | . . . . . . . . . 8 1 . . 1 7 Targets Rammed 18 | . . . . . . . . . 9 1 . . 1 7 Kicked . | . . . . . . . . . . . . . . . Crushed 1 | . . . . . . . . . 1 . . . . . Highest Temperature 452 | . 300 338 144 156 182 199 196 . 452 343 . . . . Average Temperature 98 | . 83 121 38 56 83 62 90 . 129 137 . . . . Received Heat Transfer 2586 | . 123 249 189 87 44 36 405 . 775 498 . . 117 63 Effects 7 | . 1 2 . . . . . . 3 1 . . . . Energy Bleed 4 | . 1 1 . . . . . . 1 1 . . . . Interference 1 | . . . . . . . . . 1 . . . . . Short Circuit 1 | . . 1 . . . . . . . . . . . . Damage (minor) 1 | . . . . . . . . . 1 . . . . . Siege Activations . | . . . . . . . . . . . . . . . Robots Corrupted 4 | . . . 1 . . . 2 . 1 . . . . . Combat Hostiles 3 | . . . 1 . . . 2 . . . . . . . Parts Fried 25 | . . 3 6 . . . 11 . 2 3 . . . . Impact Corruptions . | . . . . . . . . . . . . . . . Robots Melted . | . . . . . . . . . . . . . . . Combat Hostiles . | . . . . . . . . . . . . . . . Parts Melted 16 | . 1 1 1 4 4 . . . 1 4 . . . . Heat Transferred 8405 | . 457 864 583 1776 444 740 555 . 1876 1110 . . . . Parts Sabotaged . | . . . . . . . . . . . . . . . Parts Stolen . | . . . . . . . . . . . . . . . Parts Stripped . | . . . . . . . . . . . . . . . Power Chain Reactions 5 | . 1 1 1 . . 1 . . 1 . . . . . Missiles Intercepted . | . . . . . . . . . . . . . . . Alert | -11 -10 -9 -8 -7 -6 -5 -5 -4 -3 -3 -2 -2 -1 -1 ------- Run | Scr Mat Mat Mat Fac Fac Fac Ext Fac Res Arm Res DSF Acc Com Peak Influence 916 | 15 394 720 916 512 256 172 235 34 725 611 231 173 275 286 Initial 350 | . 9 144 304 350 196 125 . 34 17 340 231 173 79 176 Average 310 | 5 211 444 555 414 218 90 88 34 430 438 231 163 119 200 Maximum Alert Level 3 | . 1 3 3 2 1 . 1 . 3 2 1 . 1 1 Low Security (%) 39 | 100 40 12 . . 49 100 98 100 20 . . 100 84 59 Level 1 30 | . 59 37 36 56 50 . 1 . 18 47 100 . 15 40 Level 2 23 | . . 32 36 43 . . . . 56 52 . . . . Level 3 6 | . . 18 26 . . . . . 4 . . . . . Level 4 . | . . . . . . . . . . . . . . . Level 5 . | . . . . . . . . . . . . . . . High Security . | . . . . . . . . . . . . . . . Max Security . | . . . . . . . . . . . . . . . Squads Dispatched 42 | . 3 1 6 6 1 1 2 . 13 2 . 1 4 2 Investigation 5 | . 1 . . . . . 1 . . 1 . . 2 . Extermination 6 | . . . . 1 . 1 . . 4 . . . . . Reinforcement 22 | . 2 1 4 2 1 . 1 . 6 . . 1 2 2 Assault 4 | . . . . . . . . . 3 1 . . . . Garrison 5 | . . . 2 3 . . . . . . . . . . Intercept . | . . . . . . . . . . . . . . . Searches Triggered . | . . . . . . . . . . . . . . . Construction Impeded 4 | . . . 1 . . . . . 3 . . . . . Haulers Reinforced 1 | . . . . . . . . . 1 . . . . . Active Scanning Responses . | . . . . . . . . . . . . . . . Cargo Convoy Interrupts . | . . . . . . . . . . . . . . . Stealth | -11 -10 -9 -8 -7 -6 -5 -5 -4 -3 -3 -2 -2 -1 -1 --------- Run | Scr Mat Mat Mat Fac Fac Fac Ext Fac Res Arm Res DSF Acc Com Distress Signals 9 | . 2 2 1 . . . 1 . 2 . . . . 1 Communications Jammed . | . . . . . . . . . . . . . . . Distress Signals . | . . . . . . . . . . . . . . . Times Spotted 244 | . 23 25 32 13 3 4 18 . 57 25 . 5 22 17 Peak Tracking Total 17 | . 3 6 7 3 2 2 8 . 15 12 . 5 17 16 Tactical Retreats 11 | . 2 2 . . . . . . 2 . . . 4 1 Traps | -11 -10 -9 -8 -7 -6 -5 -5 -4 -3 -3 -2 -2 -1 -1 ------- Run | Scr Mat Mat Mat Fac Fac Fac Ext Fac Res Arm Res DSF Acc Com Traps Triggered 6 | . 1 2 . 1 . . . . 1 1 . . . . Indirectly . | . . . . . . . . . . . . . . . Trap Hack Attempts . | . . . . . . . . . . . . . . . Triggered . | . . . . . . . . . . . . . . . Disarmed . | . . . . . . . . . . . . . . . Reprogrammed . | . . . . . . . . . . . . . . . Reused . | . . . . . . . . . . . . . . . Traps Extracted . | . . . . . . . . . . . . . . . Installed . | . . . . . . . . . . . . . . . Triggered 1 | . . . . . . . . . 1 . . . . . Machines | -11 -10 -9 -8 -7 -6 -5 -5 -4 -3 -3 -2 -2 -1 -1 ---------- Run | Scr Mat Mat Mat Fac Fac Fac Ext Fac Res Arm Res DSF Acc Com Machines Disabled 17 | . 3 2 3 . . . 1 . 5 3 . . . . Max in Single Turn 2 | . 2 1 2 . . . 1 . 2 . . . . . Machines Sabotaged . | . . . . . . . . . . . . . . . Garrisons Compromised . | . . . . . . . . . . . . . . . Overloaded Fab Kills 1 | . . . . . . . . . . 1 . . . . Hacking | -11 -10 -9 -8 -7 -6 -5 -5 -4 -3 -3 -2 -2 -1 -1 --------- Run | Scr Mat Mat Mat Fac Fac Fac Ext Fac Res Arm Res DSF Acc Com Machines Accessed 36 | . 8 3 6 2 1 5 6 . . 1 1 . 3 . Terminals 27 | . 5 . 5 2 1 5 5 . . . 1 . 3 . Fabricators 1 | . . . . . . . . . . 1 . . . . Repair Stations 3 | . 1 1 1 . . . . . . . . . . . Recycling Units 4 | . 2 1 . . . . 1 . . . . . . . Scanalyzers 1 | . . 1 . . . . . . . . . . . . Garrison Access . | . . . . . . . . . . . . . . . Total Hacks 119 | . 30 11 33 3 1 12 17 . . 1 2 . 9 . Successful 77 | . 21 9 27 1 . 6 8 . . 1 1 . 3 . Failed 42 | . 9 2 6 2 1 6 9 . . . 1 . 6 . Catastrophic 2 | . 1 . . . . . 1 . . . . . . . Database Lockouts . | . . . . . . . . . . . . . . . Manual 57 | . 20 2 17 2 1 8 6 . . 1 . . . . Terminals 88 | . 23 . 22 3 1 12 16 . . . 2 . 9 . Fabricators 1 | . . . . . . . . . . 1 . . . . Repair Stations 15 | . 2 2 11 . . . . . . . . . . . Recycling Units 9 | . 5 3 . . . . 1 . . . . . . . Scanalyzers 6 | . . 6 . . . . . . . . . . . . Garrison Access . | . . . . . . . . . . . . . . . Terminal Hacks 26 | . 5 . 8 1 . 4 4 . . . 1 . 3 . Robot Analysis 1 | . . . 1 . . . . . . . . . . . Prototype ID Bank 5 | . 1 . 3 . . 1 . . . . . . . . Open Door 8 | . . . . . . 1 4 . . . . . 3 . Open DSF 3 | . . . . 1 . 1 . . . . 1 . . . Terminal Index 1 | . 1 . . . . . . . . . . . . . Unreport Threat 2 | . . . 1 . . 1 . . . . . . . . Locate Traps 1 | . 1 . . . . . . . . . . . . . Hauler Manifests 1 | . 1 . . . . . . . . . . . . . Zone Layout 4 | . 1 . 3 . . . . . . . . . . . Fabricator Hacks . | . . . . . . . . . . . . . . . Repair Station Hacks 14 | . 2 2 10 . . . . . . . . . . . Scan Component 7 | . 1 1 5 . . . . . . . . . . . Repair 7 | . 1 1 5 . . . . . . . . . . . Recycling Unit Hacks 2 | . 1 1 . . . . . . . . . . . . Report Inventory 2 | . 1 1 . . . . . . . . . . . . Scanalyzer 4 | . . 4 . . . . . . . . . . . . Insert Component 2 | . . 2 . . . . . . . . . . . . Analyze 2 | . . 2 . . . . . . . . . . . . Garrison Access Hacks . | . . . . . . . . . . . . . . . Unauthorized Hacks 31 | . 13 2 9 . . 2 4 . . 1 . . . . Terminals 24 | . 10 . 9 . . 2 3 . . . . . . . Track 8 | . 3 . 3 . . 1 1 . . . . . . . Assimilate 1 | . . . 1 . . . . . . . . . . . Botnet 11 | . 5 . 4 . . 1 1 . . . . . . . Operators 4 | . 2 . 1 . . . 1 . . . . . . . Fabricators 1 | . . . . . . . . . . 1 . . . . Overload 1 | . . . . . . . . . . 1 . . . . Repair Stations . | . . . . . . . . . . . . . . . Recycling Units 6 | . 3 2 . . . . 1 . . . . . . . Monitor 2 | . 1 1 . . . . . . . . . . . . Mask 4 | . 2 1 . . . . 1 . . . . . . . Scanalyzers . | . . . . . . . . . . . . . . . Garrison Access . | . . . . . . . . . . . . . . . Data Cores Recovered 1 | . . . . . . 1 . . . . . . . . Used . | . . . . . . . . . . . . . . . Hacking Detections 26 | . 7 3 5 1 1 3 4 . . . . . 2 . Full Trace Events 2 | . . . . . . . . . . . . . 2 . Feedback Events . | . . . . . . . . . . . . . . . Feedback Blocked . | . . . . . . . . . . . . . . . Robot Schematics Acquired . | . . . . . . . . . . . . . . . Robots Built . | . . . . . . . . . . . . . . . Authchips . | . . . . . . . . . . . . . . . Time . | . . . . . . . . . . . . . . . Total Robot Build Rating . | . . . . . . . . . . . . . . . Part Schematics Acquired 2 | . . 2 . . . . . . . . . . . . Parts Built . | . . . . . . . . . . . . . . . Authchips . | . . . . . . . . . . . . . . . Time . | . . . . . . . . . . . . . . . Total Part Build Rating . | . . . . . . . . . . . . . . . Parts Repaired 7 | . 1 1 5 . . . . . . . . . . . Time 230 | . 26 38 166 . . . . . . . . . . . Parts Recycled . | . . . . . . . . . . . . . . . Recycled Matter . | . . . . . . . . . . . . . . . Retrieved Matter . | . . . . . . . . . . . . . . . Retrieved Components . | . . . . . . . . . . . . . . . Parts Scanalyzed 2 | . . 2 . . . . . . . . . . . . Part Schematics Acquired 2 | . . 2 . . . . . . . . . . . . Parts Damaged . | . . . . . . . . . . . . . . . Bothacking | -11 -10 -9 -8 -7 -6 -5 -5 -4 -3 -3 -2 -2 -1 -1 ------------ Run | Scr Mat Mat Mat Fac Fac Fac Ext Fac Res Arm Res DSF Acc Com Used RIF Installer . | . . . . . . . . . . . . . . . Robots Hacked . | . . . . . . . . . . . . . . . Non-combat . | . . . . . . . . . . . . . . . Combat . | . . . . . . . . . . . . . . . Robot Hacks Applied . | . . . . . . . . . . . . . . . Relay Couplers Released . | . . . . . . . . . . . . . . . Fabnet Peak Effective % . | . . . . . . . . . . . . . . . Robots Rewired 4 | . . . . . . . . . . 4 . . . . Allies Hacked 1 | . . . . . . . . . . 1 . . . . Hacks Repelled . | . . . . . . . . . . . . . . . Allies | -11 -10 -9 -8 -7 -6 -5 -5 -4 -3 -3 -2 -2 -1 -1 -------- Run | Scr Mat Mat Mat Fac Fac Fac Ext Fac Res Arm Res DSF Acc Com Total Allies 9 | . . . . . . . 5 . . 4 . . . . Largest Group 5 | . . . . . . . 5 . . 4 . . . . Highest-Rated Group 224 | . . . . . . . 115 . . 224 . . . . Highest-Rated Ally 56 | . . . . . . . 25 . . 56 . . . . Total Orders 9 | . . . . . . . . 1 8 . . . . . EXPLORE 8 | . . . . . . . . 1 7 . . . . . RETURN 1 | . . . . . . . . . 1 . . . . . Ally Attacks 82 | . . . . . . . 36 . . 46 . . . . Total Damage 2963 | . . . . . . . 1162 . . 1801 . . . . Kills 11 | . . . . . . . 3 . . 8 . . . . Allies Corrupted . | . . . . . . . . . . . . . . . Allies Melted . | . . . . . . . . . . . . . . . Intel | -11 -10 -9 -8 -7 -6 -5 -5 -4 -3 -3 -2 -2 -1 -1 ------- Run | Scr Mat Mat Mat Fac Fac Fac Ext Fac Res Arm Res DSF Acc Com Robot Analysis Total 1 | . . . 1 . . . . . . . . . . . Derelict Logs Recovered . | . . . . . . . . . . . . . . . Drone Launches 16 | . . . . . . . . 2 14 . . . . . Drone Recoveries 16 | . . . . . . . . 2 14 . . . . . Exploration | -11 -10 -9 -8 -7 -6 -5 -5 -4 -3 -3 -2 -2 -1 -1 ------------- Run | Scr Mat Mat Mat Fac Fac Fac Ext Fac Res Arm Res DSF Acc Com Turns Passed 6843 | 95 1002 794 858 544 87 838 547 156 1064 432 16 46 263 101 Spaces Moved 3847 | 46 515 307 333 306 41 548 239 69 395 273 29 77 488 181 Core 935 | 5 . . . . . . . . 24 137 29 71 488 181 Treads 496 | . . . 1 . . . 23 69 371 32 . . . . Legs 2410 | 41 515 307 332 306 41 548 216 . . 104 . . . . Wheels . | . . . . . . . . . . . . . . . Hover . | . . . . . . . . . . . . . . . Flight 6 | . . . . . . . . . . . . 6 . . Fastest Speed 50 | 50 120 125 126 122 130 130 130 160 50 50 50 50 50 50 Average Speed 121 | 112 145 169 133 130 130 130 144 199 145 104 50 52 50 50 Slowest Speed 450 | 120 190 190 240 195 130 130 340 240 320 450 50 80 50 50 Overloaded Moves . | . . . . . . . . . . . . . . . Propulsion Burnouts . | . . . . . . . . . . . . . . . Robots Hopped . | . . . . . . . . . . . . . . . Cave-ins Triggered . | . . . . . . . . . . . . . . . Exploration Rate (%) 24 | 3 88 40 37 8 1 17 43 5 23 25 1 49 19 14 Regions Visited 14 Branch Regions 3 Pre-discovered Areas . | . . . . . . . . . . . . . . . Known Exits Taken 1 | . . . . . . . . . . . 1 . . . Unknown Exits Taken 12 | 1 1 1 1 1 1 1 1 1 1 1 . . 1 . Scrap Searched . | . . . . . . . . . . . . . . . Spaces Dug 23 | . . . 16 . . 1 . . 6 . . . . . Terrain Destroyed 439 | . 78 40 180 . . 4 2 . 132 3 . . . . Melee . | . . . . . . . . . . . . . . . Projectile 48 | . . . 1 . . 2 2 . 40 3 . . . . AOE 391 | . 78 40 179 . . 2 . . 92 . . . . . Terrain Rammed . | . . . . . . . . . . . . . . . Walls Destroyed . | . . . . . . . . . . . . . . . Machines Disabled . | . . . . . . . . . . . . . . . Actions | -11 -10 -9 -8 -7 -6 -5 -5 -4 -3 -3 -2 -2 -1 -1 --------- Run | Scr Mat Mat Mat Fac Fac Fac Ext Fac Res Arm Res DSF Acc Com Total 5278 | 69 674 498 651 396 57 627 355 88 688 369 29 81 505 191 Wait 643 | 7 72 85 209 42 4 26 45 9 124 8 . . 12 . Move 3833 | 45 514 306 332 305 40 547 238 68 394 272 28 76 487 181 Hop . | . . . . . . . . . . . . . . . Pick Up 79 | 1 13 16 11 6 . 9 3 4 11 2 1 . 1 1 Fast Attach 65 | 7 1 1 7 2 . 4 7 1 9 19 . 3 3 1 Attach 49 | . . 5 6 3 2 . 6 3 17 5 . 1 . 1 Detach 7 | . . . . . 1 . . 1 4 . . . 1 . Swap 94 | 1 16 18 27 6 1 8 2 1 14 . . . . . Drop 60 | . 2 17 8 5 . 9 5 1 9 4 . . . . Fire 399 | 8 56 50 51 27 9 24 49 . 97 28 . . . . Melee . | . . . . . . . . . . . . . . . Ram 9 | . . . . . . . . . . 1 . . 1 7 Kick . | . . . . . . . . . . . . . . . Crush 9 | . . . . . . . . . 9 . . . . . Escape Stasis . | . . . . . . . . . . . . . . . Rewire 31 | . . . . . . . . . . 30 . 1 . . Trap . | . . . . . . . . . . . . . . . Miscellaneous . | . . . . . . . . . . . . . . . Route ------- -11/Scrapyard -10/Materials (discovered 2 exits: *Mat / [*Min]) -9/Materials (discovered 3 exits: *Mat / [*Min] / [*Sto]) -8/Materials -7/Factory -6/Factory -5/Factory -5/Extension -4/Factory -3/Research -3/Armory -2/Research -2/DSF -1/Access -1/Command History --------- Turn | Location | Event 3 | -11/Scrapyard | Discovered new exit (range 15) 96 | -11/Scrapyard | Entered Materials 307 | -10/Materials | Build established: Mutant 510 | -10/Materials | Discovered new exit (range 12) 657 | -10/Materials | Repaired Grenade Launcher 850 | -10/Materials | Discovered new exit (range 3) 1098 | -10/Materials | Entered another Materials area 1098 | -9/Materials | Evolved 2 slots: Utility x2 1100 | -9/Materials | Discovered new exit (range 14) 1463 | -9/Materials | Discovered new exit (range 7) 1821 | -9/Materials | Discovered new exit (range 10) 1886 | -9/Materials | Repaired Titanium Leg 1892 | -9/Materials | Entered another Materials area 1892 | -8/Materials | Evolved 2 slots: Propulsion x2 2049 | -8/Materials | Repaired Lgt. Nuclear Core 2089 | -8/Materials | Repaired Lgt. Nuclear Core 2128 | -8/Materials | Repaired Titanium Leg 2156 | -8/Materials | Repaired EM Pulse Gun 2183 | -8/Materials | Repaired Seismic Detector 2355 | -8/Materials | Destroyed 7 combat bots 2628 | -8/Materials | Discovered new exit (range 17) 2634 | -8/Materials | Garrison activated, responded to threat 2652 | -8/Materials | Core integrity fell below 50% 2670 | -8/Materials | Destroyed 7 combat bots 2687 | -8/Materials | Lost 6 parts (1p2n1u2w) 2750 | -8/Materials | Entered Factory 2750 | -7/Factory | Evolved 2 slots: Utility x2 2909 | -7/Factory | Garrison activated, responded to threat 2996 | -7/Factory | Build established: Scavenger-Mutant 3277 | -7/Factory | Discovered new exit (range 13) 3294 | -7/Factory | Entered another Factory area 3294 | -6/Factory | Evolved 2 slots: Power x1, Utility x1 3336 | -6/Factory | Discovered new exit (range 10) 3381 | -6/Factory | Entered another Factory area 3381 | -5/Factory | Evolved 2 slots: Utility x2 3485 | -5/Factory | Discovered new exit (range 8) 3615 | -5/Factory | Build established: Skirmisher 3631 | -5/Factory | Found Prototype Launcher 3632 | -5/Factory | Identified Tesla Bomb Launcher 4219 | -5/Factory | Entered Extension 4293 | -5/Extension | Rescued a captive Derelict 4294 | -5/Extension | Rescued a captive Derelict 4401 | -5/Extension | Rescued a captive Derelict 4402 | -5/Extension | Rescued a captive Derelict 4421 | -5/Extension | Rescued a captive Derelict 4546 | -5/Extension | Spotted B-75 Beast 4596 | -5/Extension | Spotted B-75 Beast 4628 | -5/Extension | Discovered new exit (range 16) 4633 | -5/Extension | Allies destroyed B-75 Beast 4647 | -5/Extension | Destroyed B-75 Beast 4674 | -5/Extension | Lost 12 parts (1p4n4u3w) 4694 | -5/Extension | Disrupted transfer network 4766 | -5/Extension | Entered Factory 4766 | -4/Factory | Evolved 2 slots: Utility x1, Weapon x1 4811 | -4/Factory | Discovered new exit (range 6) 4922 | -4/Factory | Entered Research 4922 | -3/Research | Evolved 2 slots: Utility x2 5441 | -3/Research | Spotted B-86 Titan 5722 | -3/Research | First assault squad dispatched 5788 | -3/Research | System corruption reached 10% 5912 | -3/Research | Build established: Scavenger-Tank 5985 | -3/Research | Discovered new exit (range 2) 5986 | -3/Research | Entered Armory 6012 | -3/Armory | Lost 13 parts (3p3n4u3w) 6213 | -3/Armory | Lost 4 parts (1p3u) 6236 | -3/Armory | First assault squad dispatched 6291 | -3/Armory | Lost 3 parts (1p2w) 6358 | -3/Armory | Core integrity fell below 50% 6415 | -3/Armory | Core integrity fell below 20% 6416 | -3/Armory | Discovered new exit (range 5) 6418 | -3/Armory | Entered Research 6418 | -2/Research | Evolved 2 slots: Propulsion x1, Weapon x1 6420 | -2/Research | Lost 8 parts (2n2u4w) 6433 | -2/Research | Identified exit to DSF 6434 | -2/Research | Entered DSF 6442 | -2/DSF | Discovered new exit (range 22) 6472 | -2/DSF | Additional patrols routed to DSF 6480 | -2/DSF | Entered Access 6480 | -1/Access | Evolved 2 slots: Propulsion x1, Utility x1 6500 | -1/Access | Lost 4 parts (4u) 6601 | -1/Access | Spotted B-99 Colossus 6615 | -1/Access | Build established: Mutant 6698 | -1/Access | System corruption reached 10% 6728 | -1/Access | Lost 8 parts (4n4u) 6735 | -1/Access | Core integrity fell below 50% 6740 | -1/Access | Discovered new exit (range 7) 6743 | -1/Access | Entered Command 6833 | -1/Command | Core integrity fell below 20% 6844 | -1/Command | Destroyed by H-88 Terminator with KE Penetrator Last Messages --------------- 06826_ Imp. Linear Gravjet destroyed. 06826_ Penetrated by Slug. 06826_ O-32 Director sends out distress signal. 06826_ O-32 Director: "IFF HANDSHAKE FAILED. SECURING TERMINAL." 06828_ Penetrated by Slug. 06829_ Slug penetrates O-32 Director. 06829_ ALERT: Suspicious intruders detected, dispatching Cutter reinforcements to area. 06832_ Penetrated by Slug. 06836_ K-01 Serf destroyed. 06836_ K-01 Serf collects debris. 06836_ Slug penetrates Wall. 06837_ Penetrated by Slug. 06838_ ALERT: Hostiles spotted, dispatching reinforcements to Terminal C007. 06839_ Critical hit (Burn: +37). 06840_ Penetrated by Slug. 06840_ Centrium Leg destroyed. 06843_ 2|S/ YZ FG%HL4MZN1/AQVGZO9 06844_ Slug penetrates H-88 Terminator. Map ----- +----------------------------------------------------+ | ?????????????????????????????????????????????????? | | ?????????????????????????????????????????????????? | | ?????????????????????????????????????????????????? | | ?????????????????????????????????????????????????? | | ?????????????????????????????????????????????????? | | ?????????????????????????????????????????????????? | | ?????????????????????????????????????????????????? | | ?????????????????????????????????????????????????? | | ?????????????????????????????????????????????????? | | ?????????????????????????????????????????????????? | | ??????????????????????? ???????????????????????? | | ????????????????????? ???????????????????????? | | ?????????????????? ??????????????????????? | | ?????????????????" ??????????????????????? | | ????????????????"" #??????????????????????? | | ???????????????"T #??????????????????????? | | ???????????# ?"" #??????????????????????? | | ???????????# "" #??????????????????????? | | ???????????# "" #??????????????????????? | | ???????????# #??????????????????????? | | ???????????# ! #??????????????????????? | | ???????????# #??????????????????????? | | ???????????# #??????????????????????? | | ???????????# k !!! #??????????????????????? | | ???????????# !!! #??????????????????????? | | ???????????# !!! @#??????????????????????? | | ???????????# #??????????????????????? | | ???????????# ##+#??????????????????????? | | ???????????# # ?????????????????????? | | ????######+# # #????????????????????? | | ???? #! #????????????????????? | | ??? gg # #????????????????????? | | ??? g g g # #????????????????????? | | ?? h # #????????????????????? | | ??? + #????????????????????? | | ??????####/## ###### #????????????????????? | | ????????????# #????# #????????????????????? | | ????????????# #??########????????????????????? | | ????????????# =#? #?????????????????????? | | ????????????# *%#? #?????????????????????? | | ????????????# =# """"??????????????????????? | | ????????????# # """"?????????###########??? | | ????????????# + """"?????????# #??? | | ????????????# # """"?????????# #??? | | ????????????# # #????????# """" =#??? | | ????????????#### ##? #????????# """" #??? | | ???????????????# #?? = #????????# """" #??? | | ???????????????# ###############+#### """" #??? | | ???????????????# + #?## | | ???????????????# # #?# | +----------------------------------------------------+ Best States ------------- Heat Dissipation 103 Coolant Potential 80 Energy Generation 45 Energy Capacity 1115 Matter Stores 547 Matter Capacity 600 Sight Range 22 Robot Scan Range 18 Terrain Scan Range 16 Terrain Scan Density 210 Jamming Range 14 Power Amplification 30 Armor Coverage 450 Resistance: KI 25 Resistance: TH 10 Core Shielding 30 Point Defense Rating 80 Evasion (%) 55 Targeting Accuracy 8 Target Analysis 8 Recoil Reduction 4 Offensive Hacking 10 Defensive Hacking 14 Authchip Count 7 Item Schematics ----------------- Imp. EM Shotgun | -9/Materials | Scanalyzed Huge Storage Unit | -9/Materials | Scanalyzed Robot Schematics ------------------ None Fabricated ------------ Nothing Alien Tech Used ----------------- None Achievements -------------- Ride The Lightning Challenges ------------ None Game ------ Seed ThermicRemotePlating Manual? 0 Play Time 02:49:53 Cumulative 250.1 hours Start 2022.03.18 @ 15:17:54 End 2022.03.18 @ 23:36:34 Sessions 3 Manual Loads 0 Difficulty Rogue Special Mode None Game No. 176 Rogue 176 Adventurer 0 Explorer 0 Win Type - Total 1 Types 1/0/0/0/0/0/0/0/0 Lore% 61 Gallery% 67 Achievement% 52 Wizard Run 0 Options --------- ASCII 0 Keyboard 0 Movement Mouse Keybinds 0 Fullscreen 1 Font 18/SmallcapsGlow Map View 76x50 Tactical HUD 1 Map Filters NONE Filters NONE Steam 1 RUN: 3ecedf37-14ef-4483-a28f-0fd6d73252d2